fUST/lending_fUST_20240415
["ID","MTS","AMOUNT","RATE_DAILY","PERIOD"]
[322603695,1713115653769,-2096.49,0.00038904,7]
[322603696,1713115653793,-500.0,0.00038904,7]
[322603697,1713115653820,-504.44,0.00038904,7]
[322603698,1713115653844,-500.0,0.00038904,7]
[322603699,1713115653867,-500.0,0.00038904,7]
[322603700,1713115653889,-595.25244842,0.00038904,7]
[322603701,1713115653912,-500.0,0.00038904,7]
[322603702,1713115653934,-500.0,0.00038904,7]
[322603703,1713115653957,-500.0,0.00038904,7]
[322603704,1713115653978,-500.0,0.00038904,7]
[322603705,1713115654001,-500.0,0.00038904,7]
[322603706,1713115654023,-500.0,0.00038904,7]
[322603707,1713115654051,-500.0,0.00038904,7]
[322603708,1713115654073,-500.0,0.00038904,7]
[322603709,1713115654097,-500.0,0.00038904,7]
[322603710,1713115654119,-500.0,0.00038904,7]
[322603711,1713115654141,-500.0,0.00038904,7]
[322603712,1713115654162,-500.0,0.00038904,7]
[322603713,1713115654184,-500.0,0.00038904,7]
[322603714,1713115654205,-500.0,0.00038904,7]
[322603715,1713115654227,-313.92283683,0.00038904,7]
[322603716,1713115654247,-500.0,0.00038904,7]
[322603717,1713115654269,-500.0,0.00038904,7]
[322603718,1713115654290,-549.83822899,0.00038904,7]
[322603719,1713115654317,-500.0,0.00038904,7]
[322603720,1713115654337,-500.0,0.00038904,7]
[322603721,1713115654358,-521.05110417,0.00038904,7]
[322603722,1713115654379,-500.0,0.00038904,7]
[322603723,1713115654399,-500.0,0.00038904,7]
[322603724,1713115654419,-500.0,0.00038904,7]
[322603725,1713115654438,-500.0,0.00038904,7]
[322603726,1713115654459,-500.0,0.00038904,7]
[322603727,1713115654480,-310.11710721,0.00038904,7]
[322603728,1713115654500,-564.64,0.00038904,7]
[322603729,1713115654520,-606.85,0.00038904,7]
[322603730,1713115654540,-500.0,0.00038904,7]
[322603731,1713115654569,-500.0,0.00038904,7]
[322603732,1713115654590,-500.0,0.00038904,7]
[322603733,1713115654610,-500.0,0.00038904,7]
[322603734,1713115654632,-500.0,0.00038904,7]
[322603735,1713115654652,-500.0,0.00038904,7]
[322603736,1713115654672,-156.48,0.00038904,7]
[322603737,1713115654693,-500.0,0.00038904,7]
[322603738,1713115654714,-500.0,0.00038904,7]
[322603739,1713115654734,-500.0,0.00038904,7]
[322603740,1713115654756,-500.0,0.00038904,7]
[322603741,1713115654777,-500.0,0.00038904,7]
[322603742,1713115654804,-500.0,0.00038904,7]
[322603743,1713115654825,-500.0,0.00038904,7]
[322603744,1713115654845,-500.0,0.00038904,7]
[322603745,1713115654868,-500.0,0.00038904,7]
[322603746,1713115654889,-575.78,0.00038904,7]
[322603747,1713115654910,-500.0,0.00038904,7]
[322603748,1713115654930,-521.16,0.00038904,7]
[322603749,1713115654952,-657.17,0.00038904,7]
[322603750,1713115654972,-500.0,0.00038904,7]
[322603751,1713115654996,-500.0,0.00038904,7]
[322603752,1713115655018,-500.0,0.00038904,7]
[322603753,1713115655040,-500.0,0.00038904,7]
[322603754,1713115655070,-516.07360422,0.00038904,7]
[322603755,1713115655093,-524.16,0.00038904,7]
[322603756,1713115655115,-500.0,0.00038904,7]
[322603757,1713115655137,-615.47,0.00038904,7]
[322603758,1713115655163,-444.3850364,0.00038904,7]
[322603759,1713115655187,-500.0,0.00038904,7]
[322603760,1713115655209,-542.30249357,0.00038904,7]
[322603761,1713115655231,-500.0,0.00038904,7]
[322603762,1713115655252,-500.0,0.00038904,7]
[322603763,1713115655274,-768.38,0.00038904,7]
[322603764,1713115655404,-500.0,0.00038904,7]
[322603765,1713115655428,-500.0,0.00038904,7]
[322603766,1713115655451,-500.0,0.00038904,7]
[322603767,1713115655473,-500.0,0.00038904,7]
[322603768,1713115655493,-500.0,0.00038904,7]
[322603769,1713115655515,-966.29,0.00038904,7]
[322603770,1713115655538,-500.0,0.00038904,7]
[322603771,1713115655567,-500.0,0.00038904,7]
[322603772,1713115655589,-500.0,0.00038904,7]
[322603773,1713115655610,-500.0,0.00038904,7]
[322603774,1713115655631,-500.0,0.00038904,7]
[322603775,1713115655653,-500.0,0.00038904,7]
[322603776,1713115655673,-500.0,0.00038904,7]
[322603777,1713115655694,-500.0,0.00038904,7]
[322603778,1713115655717,-500.0,0.00038904,7]
[322603779,1713115655738,-500.0,0.00038904,7]
[322603780,1713115655759,-663.25,0.00038904,7]
[322603781,1713115655780,-500.0,0.00038904,7]
[322603782,1713115655806,-865.66,0.00038904,7]
[322603783,1713115655828,-500.0,0.00038904,7]
[322603784,1713115655849,-500.0,0.00038904,7]
[322603785,1713115655870,-500.0,0.00038904,7]
[322603786,1713115655892,-600.8,0.00038904,7]
[322603787,1713115655913,-500.0,0.00038904,7]
[322603788,1713115655933,-500.0,0.00038904,7]
[322603789,1713115655956,-567.05,0.00038904,7]
[322603790,1713115655978,-500.0,0.00038904,7]
[322603791,1713115656003,-500.0,0.00038904,7]
[322603792,1713115656026,-500.0,0.00038904,7]
[322603793,1713115656051,-500.0,0.00038904,7]
[322603794,1713115656076,-500.0,0.00038904,7]
[322603795,1713115656100,-500.0,0.00038904,7]
[322603796,1713115656125,-500.0,0.00038904,7]
[322603797,1713115656149,-500.0,0.00038904,7]
[322603798,1713115656171,-500.0,0.00038904,7]
[322603799,1713115656192,-506.19990765,0.00038904,7]
[322603800,1713115656214,-500.0,0.00038904,7]
[322603801,1713115656235,-500.0,0.00038904,7]
[322603802,1713115656255,-775.34,0.00038904,7]
[322603803,1713115656275,-500.0,0.00038904,7]
[322603804,1713115656302,-500.0,0.00038904,7]
[322603805,1713115656323,-606.11,0.00038904,7]
[322603806,1713115656344,-500.0,0.00038904,7]
[322603807,1713115656364,-867.5,0.00038904,7]
[322603808,1713115656385,-258.36897037,0.00038904,7]
[322603809,1713115656405,-500.0,0.00038904,7]
[322603810,1713115656426,-178.28,0.00038904,7]
[322603811,1713115656447,-500.0,0.00038904,7]
[322603812,1713115656467,-500.0,0.00038904,7]
[322603813,1713115656487,-500.0,0.00038904,7]
[322603814,1713115656508,-500.0,0.00038904,7]
[322603815,1713115656528,-500.0,0.00038904,7]
[322603816,1713115656553,-1266.9828645,0.00038904,7]
[322604042,1713115833696,-627.78665051,0.00038247,4]
[322604043,1713115833706,-2000.0,0.00038248,2]
[322604044,1713115833716,-596.8187497,0.00038355,2]
[322604045,1713115833725,-203.78092943,0.00038355,4]
[322604046,1713115833735,-500.0,0.00038356,7]
[322604047,1713115833744,-500.0,0.00038356,7]
[322604048,1713115833754,-500.0,0.00038356,7]
[322604049,1713115833764,-500.0,0.00038356,7]
[322604050,1713115833773,-278.28463039,0.00038356,7]
[322604051,1713115833782,-1558.25,0.00038356,7]
[322604052,1713115833791,-500.0,0.00038356,7]
[322604053,1713115833803,-999.17,0.00038356,7]
[322604054,1713115833812,-494.01116644,0.00038356,7]
[322604055,1713115833821,-530.99,0.00038356,7]
[322604056,1713115833830,-7739.9,0.00038356,7]
[322604057,1713115833839,-503.81,0.00038356,7]
[322604058,1713115833848,-19738.83,0.00038356,7]
[322604059,1713115833857,-500.0,0.00038356,7]
[322604060,1713115833866,-5251.41,0.00038356,7]
[322604061,1713115833875,-500.0,0.00038356,7]
[322604062,1713115833884,-593.28,0.00038356,7]
[322604063,1713115833893,-2505.49,0.00038356,7]
[322604064,1713115833903,-500.0,0.00038356,7]
[322604065,1713115833912,-500.0,0.00038356,7]
[322604066,1713115833921,-1942.4,0.00038356,7]
[322604067,1713115833934,-500.0,0.00038356,7]
[322604069,1713115833948,-500.0,0.00038356,7]
[322604070,1713115833957,-500.0,0.00038356,7]
[322604071,1713115833967,-500.0,0.00038356,7]
[322604073,1713115833977,-4585.24,0.00038356,7]
[322604075,1713115833986,-500.0,0.00038356,7]
[322604077,1713115833996,-500.0,0.00038356,7]
[322604079,1713115834007,-500.0,0.00038356,7]
[322604081,1713115834020,-2369.72,0.00038356,7]
[322604083,1713115834030,-500.0,0.00038356,7]
[322604085,1713115834040,-500.0,0.00038356,7]
[322604086,1713115834050,-1688.46,0.00038356,7]
[322604088,1713115834061,-511.27,0.00038356,7]
[322604090,1713115834071,-500.0,0.00038356,7]
[322604092,1713115834081,-500.0,0.00038356,7]
[322604094,1713115834092,-500.0,0.00038356,7]
[322604096,1713115834102,-500.0,0.00038356,7]
[322604098,1713115834113,-500.0,0.00038356,7]
[322604100,1713115834123,-500.0,0.00038356,7]
[322604102,1713115834133,-500.0,0.00038356,7]
[322604104,1713115834143,-500.0,0.00038356,7]
[322604106,1713115834153,-500.0,0.00038356,7]
[322604108,1713115834163,-1242.55,0.00038356,7]
[322604110,1713115834174,-500.0,0.00038356,7]
[322604112,1713115834189,-500.0,0.00038356,7]
[322604114,1713115834199,-500.0,0.00038356,7]
[322604116,1713115834212,-500.0,0.00038356,7]
[322604118,1713115834222,-500.0,0.00038356,7]
[322604120,1713115834232,-973.07756353,0.00038356,7]
[322604123,1713115834249,-217.67243647,0.00038356,7]
[322604125,1713115834258,-2083.95,0.00038356,7]
[322604127,1713115834268,-200.71078306,0.00038356,7]
[322604129,1713115834277,-500.0,0.00038356,7]
[322604131,1713115834287,-500.0,0.00038356,7]
[322604133,1713115834296,-500.0,0.00038356,7]
[322604135,1713115834305,-702.28,0.00038356,7]
[322604137,1713115834315,-500.0,0.00038356,7]
[322604139,1713115834324,-2718.17,0.00038356,7]
[322604141,1713115834332,-500.0,0.00038356,7]
[322604143,1713115834342,-500.0,0.00038356,7]
[322604145,1713115834351,-500.0,0.00038356,7]
[322604147,1713115834360,-500.0,0.00038356,7]
[322604149,1713115834371,-517.14,0.00038356,7]
[322604151,1713115834381,-2268.53,0.00038356,7]
[322604152,1713115834390,-3519.56,0.00038356,7]
[322604154,1713115834399,-500.0,0.00038356,7]
[322604156,1713115834408,-5016.98,0.00038356,7]
[322604158,1713115834418,-500.0,0.00038356,7]
[322604160,1713115834429,-52608.26,0.00038356,7]
[322604162,1713115834446,-500.0,0.00038356,7]
[322604164,1713115834459,-802.06,0.00038356,7]
[322604166,1713115834469,-500.0,0.00038356,7]
[322604168,1713115834479,-3032.54,0.00038356,7]
[322604170,1713115834490,-500.0,0.00038356,7]
[322604172,1713115834501,-500.0,0.00038356,7]
[322604174,1713115834512,-841.22,0.00038356,7]
[322604176,1713115834522,-500.0,0.00038356,7]
[322604178,1713115834533,-791.88,0.00038356,7]
[322604180,1713115834545,-1182.44,0.00038356,7]
[322604182,1713115834556,-500.0,0.0003863,7]
[322604184,1713115834566,-500.0,0.0003863,7]
[322604186,1713115834577,-500.0,0.0003863,7]
[322604188,1713115834588,-500.0,0.0003863,7]
[322604190,1713115834598,-1558.25,0.0003863,7]
[322604192,1713115834609,-500.0,0.0003863,7]
[322604194,1713115834625,-999.17,0.0003863,7]
[322604196,1713115834636,-530.99,0.0003863,7]
[322604198,1713115834648,-7739.9,0.0003863,7]
[322604200,1713115834659,-503.81,0.0003863,7]
[322604202,1713115834670,-12073.26991047,0.0003863,7]
[322604204,1713115834690,-2595.05533135,0.0003863,7]
[322604418,1713115839964,-162.673669,0.00027397,2]
[322604419,1713115839976,-500.0,0.00038356,7]
[322604420,1713115839989,-672.33,0.00038356,7]
[322604423,1713115840000,-500.0,0.00038356,7]
[322604427,1713115840012,-3343.63097447,0.0003863,7]
[322604431,1713115840035,-781.3993863,0.0003863,7]
[322604434,1713115840049,-945.47439741,0.0003863,7]
[322604437,1713115840062,-500.0,0.0003863,7]
[322604439,1713115840076,-5251.41,0.0003863,7]
[322604441,1713115840088,-500.0,0.0003863,7]
[322604442,1713115840102,-593.28,0.0003863,7]
[322604443,1713115840115,-2505.49,0.0003863,7]
[322604444,1713115840126,-500.0,0.0003863,7]
[322604445,1713115840137,-500.0,0.0003863,7]
[322604446,1713115840149,-1942.4,0.0003863,7]
[322604447,1713115840162,-500.0,0.0003863,7]
[322604448,1713115840173,-500.0,0.0003863,7]
[322604449,1713115840190,-500.0,0.0003863,7]
[322604450,1713115840201,-500.0,0.0003863,7]
[322604451,1713115840212,-4585.24,0.0003863,7]
[322604452,1713115840223,-500.0,0.0003863,7]
[322604453,1713115840234,-500.0,0.0003863,7]
[322604454,1713115840245,-500.0,0.0003863,7]
[322604455,1713115840256,-2369.72,0.0003863,7]
[322604456,1713115840267,-500.0,0.0003863,7]
[322604457,1713115840277,-500.0,0.0003863,7]
[322604459,1713115840288,-1688.46,0.0003863,7]
[322604460,1713115840299,-500.0,0.0003863,7]
[322604461,1713115840310,-500.0,0.0003863,7]
[322604462,1713115840321,-500.0,0.0003863,7]
[322604464,1713115840332,-500.0,0.0003863,7]
[322604466,1713115840343,-500.0,0.0003863,7]
[322604467,1713115840353,-500.0,0.0003863,7]
[322604469,1713115840364,-500.0,0.0003863,7]
[322604471,1713115840375,-500.0,0.0003863,7]
[322604473,1713115840384,-500.0,0.0003863,7]
[322604475,1713115840395,-1242.55,0.0003863,7]
[322604477,1713115840405,-500.0,0.0003863,7]
[322604479,1713115840419,-500.0,0.0003863,7]
[322604480,1713115840429,-500.0,0.0003863,7]
[322604483,1713115840446,-500.0,0.0003863,7]
[322604485,1713115840457,-500.0,0.0003863,7]
[322604487,1713115840467,-1190.75,0.0003863,7]
[322604489,1713115840478,-2083.95,0.0003863,7]
[322604490,1713115840489,-500.0,0.0003863,7]
[322604492,1713115840500,-500.0,0.0003863,7]
[322604494,1713115840510,-500.0,0.0003863,7]
[322604496,1713115840521,-702.28,0.0003863,7]
[322604499,1713115840531,-500.0,0.0003863,7]
[322604501,1713115840542,-2718.17,0.0003863,7]
[322604503,1713115840553,-500.0,0.0003863,7]
[322604505,1713115840563,-500.0,0.0003863,7]
[322604507,1713115840573,-500.0,0.0003863,7]
[322604509,1713115840582,-515.0,0.0003863,7]
[322604511,1713115840592,-517.14,0.0003863,7]
[322604513,1713115840602,-2268.53,0.0003863,7]
[322604515,1713115840611,-3519.56,0.0003863,7]
[322604517,1713115840622,-500.0,0.0003863,7]
[322604519,1713115840632,-5016.98,0.0003863,7]
[322604521,1713115840642,-159.46396657,0.0003863,7]
[322604523,1713115840652,-52608.26,0.0003863,7]
[322604524,1713115840661,-500.0,0.0003863,7]
[322604526,1713115840671,-802.06,0.0003863,7]
[322604529,1713115840681,-500.0,0.0003863,7]
[322604531,1713115840698,-3032.54,0.0003863,7]
[322604532,1713115840708,-500.0,0.0003863,7]
[322604534,1713115840717,-500.0,0.0003863,7]
[322604536,1713115840730,-841.22,0.0003863,7]
[322604538,1713115840739,-500.0,0.0003863,7]
[322604540,1713115840750,-791.88,0.0003863,7]
[322604542,1713115840760,-1182.44,0.0003863,7]
[322604544,1713115840770,-502.33054241,0.0003863,7]
[322604547,1713115840780,-672.33,0.0003863,7]
[322604549,1713115840790,-500.0,0.0003863,7]
[322604551,1713115840800,-260.52844365,0.000388,2]
[322604553,1713115840811,-430.1353277,0.00038904,5]
[322604554,1713115840821,-573.9971355,0.00038904,7]
[322604556,1713115840832,-500.0,0.00038904,7]
[322604559,1713115840842,-500.0,0.00038904,7]
[322604561,1713115840852,-556.99,0.00038904,7]
[322604562,1713115840862,-500.0,0.00038904,7]
[322604565,1713115840872,-628.06593109,0.00038904,7]
[322604567,1713115840882,-500.0,0.00038904,7]
[322604569,1713115840892,-3015.15,0.00038904,7]
[322604571,1713115840902,-1073.58,0.00038904,7]
[322604572,1713115840913,-500.0,0.00038904,7]
[322604574,1713115840922,-501.72300528,0.00038904,7]
[322604576,1713115840939,-1244.89,0.00038904,7]
[322604579,1713115840950,-501.00546119,0.00038904,7]
[322604580,1713115840960,-500.0,0.00038904,7]
[322604582,1713115840971,-609.84,0.00038904,7]
[322604584,1713115840981,-500.0,0.00038904,7]
[322604587,1713115840991,-500.0,0.00038904,7]
[322604589,1713115841002,-500.0,0.00038904,7]
[322604590,1713115841011,-520.90262697,0.00038904,7]
[322604592,1713115841026,-1177.42,0.00038904,7]
[322604594,1713115841037,-500.0,0.00038904,7]
[322604596,1713115841048,-500.0,0.00038904,7]
[322604598,1713115841059,-500.0,0.00038904,7]
[322604600,1713115841070,-851.3,0.00038904,7]
[322604602,1713115841080,-489.38202878,0.00038904,7]
[322604603,1713115841090,-500.0,0.00038904,7]
[322604605,1713115841103,-500.0,0.00038904,7]
[322604607,1713115841114,-500.0,0.00038904,7]
[322604609,1713115841125,-705.55,0.00038904,7]
[322604611,1713115841136,-500.0,0.00038904,7]
[322604613,1713115841147,-192.39090909,0.00038904,7]
[322604615,1713115841158,-1000.0,0.00038904,2]
[322604616,1713115841169,-500.0,0.00038904,7]
[322604618,1713115841181,-500.0,0.00038904,7]
[322604620,1713115841198,-500.0,0.00038904,7]
[322604622,1713115841208,-500.0,0.00038904,7]
[322604623,1713115841218,-500.0,0.00038904,7]
[322604625,1713115841227,-500.0,0.00038904,7]
[322604627,1713115841237,-500.0,0.00038904,7]
[322604628,1713115841246,-500.0,0.00038904,7]
[322604630,1713115841256,-500.0,0.00038904,7]
[322604632,1713115841265,-2146.89,0.00038904,7]
[322604633,1713115841275,-1000.0,0.00038904,7]
[322604634,1713115841286,-500.0,0.00038904,7]
[322604635,1713115841296,-500.0,0.00038904,7]
[322604636,1713115841306,-500.0,0.00038904,7]
[322604637,1713115841318,-500.0,0.00038904,7]
[322604638,1713115841329,-2671.15,0.00038904,7]
[322604640,1713115841340,-500.0,0.00038904,7]
[322604641,1713115841350,-500.0,0.00038904,7]
[322604642,1713115841360,-500.0,0.00038904,7]
[322604644,1713115841370,-500.0,0.00038904,7]
[322604646,1713115841380,-733.98,0.00038904,7]
[322604647,1713115841390,-500.0,0.00038904,7]
[322604648,1713115841400,-705.4,0.00038904,7]
[322604649,1713115841410,-500.0,0.00038904,7]
[322604651,1713115841420,-10015.97,0.00038904,7]
[322604652,1713115841430,-500.0,0.00038904,7]
[322604654,1713115841449,-500.0,0.00038904,7]
[322604655,1713115841460,-500.0,0.00038904,7]
[322604656,1713115841470,-500.0,0.00038904,7]
[322604657,1713115841481,-1558.25,0.00038904,7]
[322604658,1713115841490,-500.0,0.00038904,7]
[322604660,1713115841500,-999.17,0.00038904,7]
[322604661,1713115841511,-530.99,0.00038904,7]
[322604663,1713115841520,-7739.9,0.00038904,7]
[322604664,1713115841530,-503.81,0.00038904,7]
[322604666,1713115841543,-19738.83,0.00038904,7]
[322604667,1713115841553,-500.0,0.00038904,7]
[322604669,1713115841563,-5251.41,0.00038904,7]
[322604670,1713115841574,-500.0,0.00038904,7]
[322604671,1713115841584,-593.28,0.00038904,7]
[322604672,1713115841595,-2505.49,0.00038904,7]
[322604673,1713115841605,-500.0,0.00038904,7]
[322604674,1713115841615,-1942.4,0.00038904,7]
[322604675,1713115841626,-534.54505286,0.00038904,7]
[322604676,1713115841637,-500.0,0.00038904,7]
[322604677,1713115841648,-500.0,0.00038904,7]
[322604678,1713115841658,-500.0,0.00038904,7]
[322604679,1713115841669,-4585.24,0.00038904,7]
[322604680,1713115841679,-500.0,0.00038904,7]
[322604681,1713115841699,-500.0,0.00038904,7]
[322604682,1713115841708,-500.0,0.00038904,7]
[322604683,1713115841718,-2369.72,0.00038904,7]
[322604684,1713115841728,-500.0,0.00038904,7]
[322604685,1713115841738,-500.0,0.00038904,7]
[322604686,1713115841747,-1688.46,0.00038904,7]
[322604687,1713115841757,-608.71,0.00038904,7]
[322604688,1713115841767,-500.0,0.00038904,7]
[322604689,1713115841778,-488.85023791,0.00038904,7]
[322604690,1713115841788,-500.0,0.00038904,7]
[322604691,1713115841798,-500.0,0.00038904,7]
[322604692,1713115841808,-500.0,0.00038904,7]
[322604693,1713115841818,-500.0,0.00038904,7]
[322604694,1713115841827,-552.31111648,0.00038904,7]
[322604695,1713115841837,-500.0,0.00038904,7]
[322604696,1713115841847,-1242.55,0.00038904,7]
[322604697,1713115841856,-500.0,0.00038904,7]
[322604698,1713115841866,-175.79838242,0.00038904,7]
[322604699,1713115841875,-500.0,0.00038904,7]
[322604700,1713115841884,-500.0,0.00038904,7]
[322604702,1713115841894,-500.0,0.00038904,7]
[322604703,1713115841903,-1190.75,0.00038904,7]
[322604704,1713115841912,-2083.95,0.00038904,7]
[322604705,1713115841921,-500.0,0.00038904,7]
[322604706,1713115841930,-500.0,0.00038904,7]
[322604707,1713115841946,-500.0,0.00038904,7]
[322604708,1713115841955,-702.28,0.00038904,7]
[322604709,1713115841965,-500.0,0.00038904,7]
[322604710,1713115841974,-2718.17,0.00038904,7]
[322604711,1713115841983,-500.0,0.00038904,7]
[322604712,1713115841992,-500.0,0.00038904,7]
[322604714,1713115842003,-500.0,0.00038904,7]
[322604715,1713115842012,-517.14,0.00038904,7]
[322604716,1713115842027,-2268.53,0.00038904,7]
[322604717,1713115842036,-3519.56,0.00038904,7]
[322604718,1713115842046,-500.0,0.00038904,7]
[322604719,1713115842055,-5016.98,0.00038904,7]
[322604720,1713115842066,-52608.26,0.00038904,7]
[322604721,1713115842076,-500.0,0.00038904,7]
[322604722,1713115842086,-802.06,0.00038904,7]
[322604723,1713115842098,-500.0,0.00038904,7]
[322604724,1713115842108,-3032.54,0.00038904,7]
[322604725,1713115842117,-500.0,0.00038904,7]
[322604726,1713115842126,-500.0,0.00038904,7]
[322604727,1713115842135,-841.22,0.00038904,7]
[322604728,1713115842145,-500.0,0.00038904,7]
[322604729,1713115842155,-791.88,0.00038904,7]
[322604730,1713115842286,-1182.44,0.00038904,7]
[322604731,1713115842297,-672.33,0.00038904,7]
[322604732,1713115842307,-500.0,0.00038904,7]
[322604733,1713115842316,-2036.38071766,0.00038931,2]
[322604734,1713115842326,-46635.60057071,0.00038999,3]
[322604735,1713115842336,-1396.0,0.00039,2]
[322604736,1713115842345,-10592.25115268,0.00039,14]
[322604737,1713115842355,-2500.0,0.00039,21]
[322604738,1713115842365,-153.0,0.00039,2]
[322604739,1713115842375,-2500.0,0.0003901,21]
[322604740,1713115842384,-2500.0,0.0003902,21]
[322604741,1713115842393,-2500.0,0.0003903,21]
[322604742,1713115842402,-2500.0,0.0003904,21]
[322604743,1713115842412,-3209.975593,0.0003905,21]
[322604744,1713115842421,-150.5,0.00039148,35]
[322604746,1713115842430,-500.0,0.00039178,7]
[322604747,1713115842448,-500.0,0.00039178,7]
[322604750,1713115842458,-500.0,0.00039178,7]
[322604753,1713115842469,-500.0,0.00039178,7]
[322604756,1713115842480,-621.68,0.00039178,7]
[322604757,1713115842490,-637.12,0.00039178,7]
[322604758,1713115842502,-2096.49,0.00039178,7]
[322604759,1713115842513,-500.0,0.00039178,7]
[322604760,1713115842524,-504.44,0.00039178,7]
[322604761,1713115842535,-500.0,0.00039178,7]
[322604763,1713115842546,-500.0,0.00039178,7]
[322604765,1713115842561,-382.88053639,0.00039178,7]
[322604767,1713115842571,-500.0,0.00039178,7]
[322604769,1713115842583,-524.9419037,0.00039178,7]
[322604771,1713115842593,-500.0,0.00039178,7]
[322604773,1713115842603,-510.31776424,0.00039178,7]
[322604775,1713115842614,-500.0,0.00039178,7]
[322604777,1713115842625,-500.0,0.00039178,7]
[322604779,1713115842636,-500.0,0.00039178,7]
[322604781,1713115842647,-500.0,0.00039178,7]
[322604783,1713115842658,-500.0,0.00039178,7]
[322604785,1713115842669,-500.0,0.00039178,7]
[322604788,1713115842680,-500.0,0.00039178,7]
[322604792,1713115842699,-218.86964851,0.00039178,7]
[322604794,1713115842709,-500.0,0.00039178,7]
[322604796,1713115842720,-500.0,0.00039178,7]
[322604799,1713115842730,-212.67886994,0.00039178,7]
[322604802,1713115842741,-332.85846333,0.00039178,7]
[322604804,1713115842752,-500.0,0.00039178,7]
[322604806,1713115842762,-500.0,0.00039178,7]
[322604808,1713115842772,-657.17,0.00039178,7]
[322604812,1713115842782,-500.0,0.00039178,7]
[322604816,1713115842793,-500.0,0.00039178,7]
[322604820,1713115842802,-615.47,0.00039178,7]
[322604824,1713115842812,-500.0,0.00039178,7]
[322604829,1713115842821,-500.0,0.00039178,7]
[322604834,1713115842831,-500.0,0.00039178,7]
[322604837,1713115842841,-500.0,0.00039178,7]
[322604839,1713115842851,-500.0,0.00039178,7]
[322604842,1713115842860,-500.0,0.00039178,7]
[322604844,1713115842869,-500.0,0.00039178,7]
[322604846,1713115842879,-966.29,0.00039178,7]
[322604849,1713115842888,-500.0,0.00039178,7]
[322604852,1713115842899,-500.0,0.00039178,7]
[322604855,1713115842909,-500.0,0.00039178,7]
[322604858,1713115842920,-380.5566609,0.00039178,7]
[322604860,1713115842929,-500.0,0.00039178,7]
[322604862,1713115842947,-500.0,0.00039178,7]
[322604864,1713115842956,-500.0,0.00039178,7]
[322604866,1713115842965,-500.0,0.00039178,7]
[322604868,1713115842975,-500.0,0.00039178,7]
[322604870,1713115842985,-500.0,0.00039178,7]
[322604872,1713115842994,-663.25,0.00039178,7]
[322604874,1713115843004,-500.0,0.00039178,7]
[322604876,1713115843015,-865.66,0.00039178,7]
[322604878,1713115843029,-500.0,0.00039178,7]
[322604880,1713115843038,-500.0,0.00039178,7]
[322604883,1713115843048,-500.0,0.00039178,7]
[322604885,1713115843059,-600.8,0.00039178,7]
[322604887,1713115843069,-500.0,0.00039178,7]
[322604889,1713115843079,-567.05,0.00039178,7]
[322604891,1713115843088,-500.0,0.00039178,7]
[322604893,1713115843097,-500.0,0.00039178,7]